bitfinex/quotes_ETHUSD_20250508
["timestamp","ask_amount","ask_price","bid_price","bid_amount"]
[1746717202830,4.99332166,2002.7,2002.3,0.8279]
[1746717203012,4.99363957,2002.6,2002.2,5.43320569]
[1746717203333,4.99354452,2002.6,2002.2,5.43320569]
[1746717203934,6.3302566,2002.3,2002.2,0.4387049]
[1746717204118,4.99550404,2001.8,2001.7,3.263854]
[1746717204317,12.22150404,2001.8,2001.7,3.263854]
[1746717204542,11.67150404,2001.8,2001.7,3.263854]
[1746717204718,4.99581766,2001.7,2001.2,3.263854]
[1746717204925,4.99581766,2001.7,2001.3,3.0]
[1746717205157,4.99581766,2001.7,2001.2,8.77975699]
[1746717205314,11.67151477,2001.8,2001.2,3.78288343]
[1746717205315,12.47860914,2001.8,2001.2,3.78288343]
[1746717205509,12.47859673,2001.8,2001.3,4.99673413]
[1746717205757,4.99500518,2002.0,2001.5,4.99613644]
[1746717205909,11.67100518,2002.0,2001.5,5.04609647]
[1746717206247,4.99544202,2001.9,2001.4,8.7695588]
[1746717206559,11.67109311,2002.0,2001.6,4.99590047]
[1746717206713,4.99539024,2001.9,2001.4,5.769542]
[1746717206913,4.99541737,2001.9,2001.4,5.76947]
[1746717207121,11.67114846,2002.0,2001.5,4.99621651]
[1746717207538,4.99529498,2001.9,2001.5,4.99621651]
[1746717207761,4.99570356,2001.8,2001.4,0.7731]
[1746717207959,6.676,2002.0,2001.5,4.99614334]
[1746717208152,6.677,2001.9,2001.5,4.99614334]
[1746717208347,6.677,2001.9,2001.7,4.9957425]
[1746717209251,6.677,2002.1,2001.5,5.04621122]
[1746717209427,6.677,2002.1,2001.8,4.99540501]
[1746717209626,6.677,2002.1,2001.8,4.9953011]
[1746717209871,6.677,2002.1,2001.9,4.99509442]
[1746717210364,6.678,2002.3,2002.0,4.99484447]
[1746717210743,4.99430163,2002.3,2001.9,4.99509843]
[1746717210970,11.6721603,2002.4,2002.0,4.99491239]
[1746717211123,18.7868,2002.6,2002.0,1.75709805]
[1746717211329,17.991,2002.6,2002.4,4.99388601]
[1746717211646,4.99326832,2002.7,2002.3,4.9941163]
[1746717211959,11.67113691,2002.8,2002.1,7.99466119]
[1746717211960,4.99386735,2002.5,2002.1,7.99466119]
[1746717212127,4.99386735,2002.5,2002.1,4.99462896]
[1746717212330,4.99353492,2002.6,2002.1,4.99459336]
[1746717212670,4.99353492,2002.6,2001.9,4.99521855]
[1746717212671,4.99440826,2002.3,2001.9,4.99521855]
[1746717212867,4.99451158,2002.2,2001.8,7.99549766]
[1746717213077,4.99439176,2002.3,2001.8,3.0]
[1746717213247,4.99439176,2002.3,2001.9,4.99521908]
[1746717213573,4.9938967,2002.5,2002.0,4.99485215]
[1746717213863,4.99359772,2002.6,2002.2,4.99440625]
[1746717215383,4.99369262,2002.6,2002.1,4.99457881]
[1746717215566,4.99378145,2002.5,2002.1,4.99457881]
[1746717216572,4.99402678,2002.4,2002.0,4.99486151]
[1746717216761,4.99434593,2002.3,2001.9,4.99523385]
[1746717216967,4.99388074,2002.5,2002.1,4.994655]
[1746717217347,11.67137114,2002.7,2002.3,4.99422999]
[1746717217670,11.67136489,2002.7,2002.3,4.99424568]
[1746717217876,6.678,2002.7,2002.4,4.99387587]
[1746717218176,6.678,2003.1,2002.8,4.99299838]
[1746717218494,4.99339853,2002.7,2002.1,0.8182]
[1746717218638,6.678,2002.7,2002.3,4.9941098]
[1746717218835,6.678,2002.7,2002.1,0.8182]
[1746717219070,6.678,2002.7,2002.4,4.99400034]
[1746717219270,6.678,2002.7,2002.3,4.99412868]
[1746717219581,4.99339932,2002.7,2002.2,4.99436278]
[1746717219738,4.99362172,2002.6,2002.2,4.99436278]
[1746717220573,4.99363722,2002.6,2002.2,4.99447193]
[1746717220771,4.9933617,2002.7,2002.1,0.8182]
[1746717221092,4.9933617,2002.7,2002.2,4.99430622]
[1746717221238,4.99360443,2002.6,2002.2,4.99430622]
[1746717221438,4.99409839,2002.4,2002.1,0.8182]
[1746717221671,4.99360168,2002.6,2002.2,4.99448184]
[1746717221874,7.4935,2002.8,2002.2,4.99448184]
[1746717221875,4.99327772,2002.7,2002.2,4.99429285]
[1746717222239,7.4935,2002.8,2002.1,5.81280104]
[1746717222452,0.8155,2002.8,2002.3,4.99406459]
[1746717222680,4.99336934,2002.7,2002.1,0.8182]
[1746717222889,4.99365864,2002.6,2002.2,4.99441096]
[1746717223069,3.8155,2002.8,2002.1,0.8182]
[1746717223275,0.8155,2002.8,2002.2,4.99434622]
[1746717223472,4.99355872,2002.6,2002.2,4.99434622]
[1746717223691,4.99370615,2002.6,2002.1,5.81279938]
[1746717223891,4.99370615,2002.6,2002.1,5.81278947]
[1746717224185,4.99335777,2002.7,2002.3,4.99415772]
[1746717224493,4.99335617,2002.7,2002.2,4.9944104]
[1746717224650,4.99335617,2002.7,2002.2,4.99434868]
[1746717224855,4.99351372,2002.6,2002.2,4.99434868]
[1746717225492,4.99340526,2002.7,2002.2,4.99431452]
[1746717225706,0.8155,2002.8,2001.9,0.78]
[1746717225870,4.99411189,2002.4,2002.0,4.99496086]
[1746717226199,4.99393927,2002.5,2002.1,4.99473501]
[1746717226397,9.98794135,2002.5,2002.0,4.99500499]
[1746717226692,4.99410954,2002.4,2002.0,4.99500499]
[1746717226891,0.55,2002.7,2002.0,4.99480528]
[1746717227099,5.80855784,2002.8,2001.9,0.78]
[1746717227100,4.99359414,2002.6,2002.2,4.99441755]
[1746717227457,9.98732367,2002.6,2002.2,4.99441755]
[1746717227809,1.3354,2002.3,2001.4,2.8128468]
[1746717227953,6.664,2002.2,2001.4,0.8048]
[1746717228156,6.664,2002.2,2001.5,0.04995319]
[1746717228352,6.664,2002.2,2002.1,4.9947555]
[1746717228597,11.6576699,2002.6,2002.1,4.99455046]
[1746717228955,11.65765385,2002.6,2002.2,4.99449731]
[1746717229156,30.43974822,2002.7,2002.2,4.99437994]
[1746717229377,4.99351295,2002.6,2002.2,4.99430768]
[1746717229598,30.43974822,2002.7,2002.3,4.99420885]
[1746717229770,4.9935456,2002.6,2002.2,4.99430768]
[1746717229970,30.43974822,2002.7,2002.2,4.9943039]
[1746717229971,30.43980464,2002.7,2002.2,4.9943039]
[1746717230171,30.43980464,2002.7,2002.3,4.99423519]
[1746717230378,0.7713,2003.2,2002.8,4.99281323]
[1746717230584,0.7713,2003.5,2003.0,0.7742]
[1746717230760,6.664,2003.7,2003.1,0.04991885]
[1746717230958,6.664,2003.7,2003.0,0.7742]
[1746717230959,3.0,2003.5,2003.0,0.7742]
[1746717231186,4.31472778,2003.2,2002.3,1.79825391]
[1746717231390,4.99240281,2003.1,2002.4,3.0]
[1746717231600,3.7,2004.5,2004.2,4.98950103]
[1746717231808,0.784,2004.8,2004.4,4.98880534]
[1746717232014,0.784,2004.8,2004.1,3.7546]
[1746717232166,4.9875402,2005.0,2004.4,4.98886805]
[1746717232369,4.98758047,2005.0,2004.5,4.9885327]
[1746717232611,6.087617,2005.1,2004.4,7.98902414]
[1746717232813,5.322317,2005.1,2005.0,4.98753117]
[1746717232967,5.322317,2005.1,2004.6,4.98839468]
[1746717233167,5.322317,2005.1,2004.5,0.8209]
[1746717233369,3.0,2005.0,2002.9,0.1]
[1746717233566,3.50753327,2004.3,2001.8,0.26040889]
[1746717233804,0.0769492,2004.2,2002.1,3.51813847]
[1746717234108,4.98823701,2004.8,2002.8,0.55]
[1746717234272,0.8322317,2004.9,2004.0,4.98989722]
[1746717234467,4.98662676,2005.4,2004.2,4.98929938]
[1746717234808,5.69772941,2005.7,2003.9,0.55]
[1746717234809,0.6747,2005.5,2003.9,0.55]
[1746717235008,0.6747,2005.5,2004.2,7.574]
[1746717235309,0.6747,2005.5,2004.3,0.04987361]
[1746717235506,4.98722725,2005.2,2004.3,3.0]
[1746717235803,0.49872273,2005.1,2004.3,4.45280413]
[1746717236006,7.98671101,2005.4,2004.4,0.04987312]
[1746717236210,4.986909,2005.3,2004.3,4.45280413]
[1746717236410,4.986909,2005.3,2004.5,3.7685]
[1746717236816,4.98710432,2005.2,2004.5,0.7685]
[1746717236973,4.98603909,2005.6,2004.6,0.04987314]
[1746717237167,4.98680176,2005.3,2004.5,0.7685]
[1746717237400,7.98668066,2005.4,2004.5,8.75722367]
[1746717237606,0.53703372,2005.5,2004.9,4.98776675]
[1746717237916,4.98542186,2005.9,2005.0,5.79800113]
[1746717238212,4.98508386,2006.0,2005.1,8.03700714]
[1746717238414,5.48381885,2005.9,2005.1,5.14070083]
[1746717238574,4.9855853,2005.8,2005.0,0.8105]
[1746717238775,7.98564733,2005.8,2005.0,0.8105]
[1746717239017,0.49850839,2005.9,2005.0,0.8105]
[1746717239323,4.98629308,2005.5,2005.0,0.8105]
[1746717239616,3.49850839,2005.9,2005.0,0.8105]
[1746717239779,5.33539276,2005.8,2005.1,0.04986002]
[1746717239979,0.6747,2006.2,2005.2,0.7966]
[1746717240206,4.98623064,2005.6,2005.2,0.7966]
[1746717240396,4.98540628,2005.9,2005.2,0.7966]
[1746717240592,4.98568984,2005.8,2005.2,0.7966]
[1746717240797,4.98606072,2005.6,2005.2,0.7966]
[1746717241002,4.98597849,2005.7,2005.2,0.7966]
[1746717241219,5.48411361,2005.8,2005.2,0.7966]
[1746717241526,4.98741387,2005.1,2004.5,0.8223]
[1746717241820,8.48417665,2005.8,2004.9,4.98757406]
[1746717242025,4.88889391,2006.3,2005.2,0.8235]
[1746717242026,4.98579863,2005.7,2005.2,0.8235]
[1746717242380,4.98579863,2005.7,2005.3,0.04985767]
[1746717242581,4.9857945,2005.7,2005.3,0.04985767]
[1746717242776,4.9857945,2005.7,2005.2,0.8235]
[1746717243004,4.98565316,2005.8,2005.3,0.04985768]
[1746717243209,4.98565316,2005.8,2005.2,5.810506]
[1746717243419,4.98678501,2005.3,2005.2,0.8235]
[1746717243711,2.05,2006.4,2005.0,3.04986552]
[1746717243893,4.9845124,2006.3,2005.6,5.74791332]
[1746717244089,4.98396695,2006.5,2005.8,4.98537187]
[1746717244291,4.98396695,2006.5,2005.9,0.04983868]
[1746717244597,2.05,2006.6,2006.0,8.3814]
[1746717245124,2.05,2006.6,2005.6,3.0]
[1746717245125,4.98479637,2006.1,2005.6,0.8124]
[1746717245284,4.98463657,2006.2,2005.6,0.8124]
[1746717245484,4.98419534,2006.4,2005.6,3.8124]
[1746717245796,4.98417389,2006.4,2005.8,5.75883956]
[1746717245995,4.98419935,2006.4,2005.8,5.75870749]
[1746717246314,7.98392359,2006.5,2005.9,4.98528309]
[1746717246507,12.9679688,2006.5,2005.9,4.98528309]
[1746717246712,4.98477561,2006.2,2005.8,0.7733]
[1746717246888,0.6747,2007.0,2005.8,0.7733]
[1746717247080,2.05,2007.1,2006.1,0.55]
[1746717247287,4.98297197,2006.9,2006.3,5.75205897]
[1746717247524,2.05,2007.1,2006.6,4.98353317]
[1746717247735,2.05,2007.1,2006.7,5.03310185]
[1746717247898,2.05,2007.2,2007.0,4.98255452]
[1746717248230,2.05,2007.4,2006.8,0.7964]
[1746717248381,4.9819513,2007.3,2006.8,0.7964]
[1746717248586,0.70319513,2007.3,2006.9,0.04982088]
[1746717248801,4.98246226,2007.1,2006.8,0.7964]
[1746717249015,4.98206456,2007.2,2006.5,0.7535]
[1746717249196,4.98315717,2006.8,2006.5,0.7535]
[1746717250024,4.98355427,2006.6,2006.5,0.7535]
[1746717250199,4.9838961,2006.5,2006.2,0.8154]
[1746717250383,0.60997166,2006.6,2006.2,0.8154]
[1746717250583,4.98396703,2006.5,2006.2,0.8154]
[1746717250932,0.55,2007.0,2006.2,0.8154]
[1746717250933,4.98370103,2006.6,2006.2,0.8154]
[1746717251144,4.98390059,2006.5,2006.2,0.8154]
[1746717251425,4.98577357,2005.8,2005.3,4.98668473]
[1746717251631,4.98463363,2006.2,2005.6,4.98600651]
[1746717251803,4.98490145,2006.1,2005.7,5.74828408]
[1746717251996,4.98415787,2006.4,2005.8,0.04985102]
[1746717252183,4.98415787,2006.4,2005.7,0.7626]
[1746717252184,7.98420531,2006.4,2006.0,4.98496525]
[1746717252389,3.0,2006.5,2006.2,5.7362479]
[1746717252591,4.98362456,2006.6,2006.2,5.7362479]
[1746717252821,4.98384062,2006.5,2006.2,0.7517]
[1746717253028,3.0,2006.7,2005.7,3.0]
[1746717253194,0.55,2006.7,2005.8,0.7517]
[1746717253624,4.98454326,2006.3,2005.8,0.7517]
[1746717253929,4.98580921,2005.7,2005.2,0.7517]
[1746717254102,0.55,2005.9,2005.2,0.7517]
[1746717254436,8.2387,2006.2,2005.4,4.98648683]
[1746717254615,4.98495409,2006.1,2005.5,4.9861637]
[1746717254816,4.98495409,2006.1,2005.2,0.37095003]
[1746717254817,4.98470065,2006.2,2005.6,0.7558]
[1746717255221,3.0,2006.2,2005.6,0.7558]
[1746717255431,0.55,2005.8,2004.9,0.7575]
[1746717255637,4.9866629,2005.4,2004.9,0.7575]
[1746717255795,4.98679051,2005.3,2004.9,0.7575]
[1746717256163,4.98703521,2005.2,2004.9,0.7575]
[1746717256503,4.98691591,2005.3,2004.9,0.7575]
[1746717256700,4.98691591,2005.3,2005.0,0.04986846]
[1746717256701,4.98690222,2005.3,2005.0,0.04986846]
[1746717256903,4.98831673,2004.7,2004.5,0.8259]
[1746717257100,4.98771962,2005.0,2004.5,0.8259]
[1746717257317,4.98766287,2005.0,2004.5,0.8259]
[1746717257490,4.98819641,2004.8,2004.5,0.8259]
[1746717257696,4.98847016,2004.7,2004.5,0.8259]
[1746717257933,4.98881574,2004.5,2004.0,0.807]
[1746717258134,4.98852638,2004.6,2004.0,0.807]
[1746717258135,4.98864371,2004.6,2004.0,0.807]
[1746717258335,4.98870262,2004.6,2004.0,5.79687788]
[1746717258647,3.0,2004.5,2003.3,0.807]
[1746717258928,4.98898321,2004.5,2003.9,4.99014976]
[1746717259135,0.81431977,2004.5,2003.8,0.807]
[1746717259335,4.98937692,2004.3,2003.8,0.807]
[1746717259713,4.98937692,2004.3,2003.8,5.79750895]
[1746717259930,4.98917597,2004.4,2003.8,5.79731893]
[1746717260257,0.81431977,2004.5,2003.8,5.79740338]
[1746717260412,4.98888979,2004.5,2003.8,2.18580715]
[1746717260613,7.9880979,2004.8,2004.2,4.98950078]
[1746717260956,4.98811329,2004.8,2004.3,0.04988644]
[1746717261174,4.98881185,2004.5,2004.0,3.0]
[1746717261352,4.98847764,2004.7,2004.0,3.0]
[1746717261650,4.98831696,2004.7,2004.2,4.98931395]
[1746717261960,12.5539293,2004.9,2004.3,4.98917127]
[1746717262157,4.9882028,2004.8,2004.3,4.98917127]
[1746717262325,4.98852849,2004.6,2004.2,4.98939852]
[1746717262540,4.98756088,2005.0,2004.6,4.98851533]
[1746717263037,0.55,2005.1,2004.5,0.04987852]
[1746717263266,4.98791412,2004.9,2004.4,0.8265]
[1746717263425,4.98817412,2004.8,2004.4,0.8265]
[1746717263631,3.55,2005.1,2004.4,0.8265]
[1746717263826,4.98753117,2005.0,2004.4,0.8265]
[1746717264040,4.98798566,2004.9,2004.4,5.81548966]
[1746717264369,4.98768304,2005.0,2004.4,5.81534552]
[1746717264571,7.98746149,2005.1,2004.6,4.9884193]
[1746717264725,12.9749684,2005.1,2004.6,4.9884193]
[1746717264923,4.98791762,2004.9,2004.5,4.98865542]
[1746717265124,3.0,2005.1,2004.4,0.8265]
[1746717265125,4.98863835,2004.6,2004.4,0.8265]
[1746717265467,4.98830158,2004.7,2004.4,0.8265]
[1746717265769,4.98896652,2004.5,2004.0,4.98985889]
[1746717266066,9.9779703,2004.5,2004.0,4.98980961]
[1746717266267,4.98877525,2004.5,2004.1,4.98974475]
[1746717266467,0.49883016,2004.6,2004.1,5.77200715]
[1746717266672,0.49883016,2004.6,2004.2,4.98939188]
[1746717266673,4.98853145,2004.6,2004.2,4.98939188]
[1746717266872,8.66259874,2004.9,2004.2,5.03921575]
[1746717267072,3.0,2004.7,2004.2,4.98945466]
[1746717267274,4.98723149,2005.2,2004.4,4.98902414]
[1746717267472,4.98723149,2005.2,2004.7,4.98815819]
[1746717267662,0.55,2005.2,2004.6,4.98851355]
[1746717267832,4.98762271,2005.0,2004.6,4.98851355]
[1746717268035,4.98793775,2004.9,2004.4,4.9888438]
[1746717268257,4.98823017,2004.8,2004.3,5.80448455]
[1746717268459,4.98830168,2004.7,2004.3,0.8154]
[1746717268672,5.48745221,2004.6,2004.3,0.8154]
[1746717269152,0.49883017,2004.6,2004.3,5.80452129]
[1746717269473,4.98834995,2004.7,2004.3,0.8154]
[1746717269974,4.9881423,2004.8,2004.3,0.8154]
[1746717270184,4.98835087,2004.7,2004.3,0.8154]
[1746717270341,7.98814368,2004.8,2004.3,0.8154]
[1746717270537,4.98838438,2004.7,2004.3,5.80463965]
[1746717271271,3.0,2004.8,2004.4,4.9889344]
[1746717271272,7.98814056,2004.8,2004.4,4.9889344]
[1746717271452,4.98829,2004.7,2004.3,5.80453237]
[1746717271650,4.98829,2004.7,2004.3,0.8154]
[1746717271850,7.98816483,2004.8,2004.4,4.98900845]
[1746717272269,4.98836409,2004.7,2004.3,5.80453561]
[1746717272441,4.98867583,2004.6,2004.3,0.8154]
[1746717272641,7.98814374,2004.8,2004.4,4.98901578]
[1746717273178,4.98838121,2004.7,2004.3,5.80450567]
[1746717274287,7.98809019,2004.8,2004.4,4.98879678]
[1746717274784,4.98839908,2004.7,2004.3,5.80451561]
[1746717275018,4.98813589,2004.8,2004.4,4.98893345]
[1746717275583,4.98813589,2004.8,2004.3,5.80461607]
[1746717275584,4.98813589,2004.8,2004.3,0.8154]
[1746717275766,8.53777993,2004.9,2004.3,5.80443576]
[1746717275945,3.0,2004.9,2004.3,0.8154]
[1746717276144,4.98875455,2004.6,2004.3,0.8154]
[1746717276368,4.98893824,2004.5,2004.1,4.98965671]
[1746717276541,4.98893824,2004.5,2004.1,4.98962424]
[1746717276964,4.98842529,2004.7,2004.0,0.8238]
[1746717277243,4.98842529,2004.7,2004.3,4.98916412]
[1746717277244,7.98842529,2004.7,2004.3,4.98916412]
[1746717277463,3.0,2004.7,2004.4,4.98902176]
[1746717277670,4.98819103,2004.8,2004.4,4.98902176]
[1746717277838,4.98860989,2004.6,2004.2,4.98930807]
[1746717278041,4.9887221,2004.6,2004.2,4.98930807]
[1746717278985,3.0,2004.8,2004.5,4.98870503]
[1746717279273,4.98787844,2004.9,2004.5,4.98863727]
[1746717279476,0.55,2005.0,2004.0,0.8238]
[1746717279780,4.98816412,2004.8,2004.4,4.98893395]
[1746717280145,4.98865909,2004.6,2004.2,4.98942605]
[1746717280344,3.0,2004.8,2004.2,5.0394009]
[1746717280590,3.0,2004.8,2004.5,4.98860989]
[1746717281077,12.15978632,2004.9,2004.2,5.57583096]
[1746717281265,4.98778632,2004.9,2004.5,4.98862046]
[1746717282582,7.172,2005.0,2004.7,4.9881807]
[1746717282791,4.98716181,2005.2,2004.8,4.98791121]
[1746717283097,12.15916181,2005.2,2004.8,4.98791121]
[1746717283256,3.55,2005.1,2004.5,0.7571]
[1746717283455,4.98789564,2004.9,2004.5,5.74576887]
[1746717283684,4.98811883,2004.8,2004.3,4.98908998]
[1746717283898,0.6747,2004.9,2004.2,5.80164894]
[1746717284059,5.66259056,2004.9,2004.5,4.98865176]
[1746717284395,0.6747,2004.9,2004.5,4.98865176]
[1746717284558,8.66260705,2004.9,2004.5,4.98865176]
[1746717284758,4.98812179,2004.8,2004.4,4.98886338]
[1746717284997,8.66260824,2004.9,2004.4,4.98885576]
[1746717285201,4.98816925,2004.8,2004.4,4.98885576]
[1746717285496,12.15968124,2005.0,2004.7,4.98824803]
[1746717285796,12.15972476,2005.0,2004.6,4.98832343]
[1746717286266,7.172,2005.0,2004.6,4.98832343]
[1746717286468,3.0,2005.1,2004.8,4.98794976]
[1746717286677,0.6747,2005.2,2004.6,5.41292858]
[1746717286900,7.172,2005.2,2004.7,5.79546287]
[1746717287082,7.172,2005.2,2005.1,4.98728242]
[1746717287282,17.967,2005.3,2005.1,4.98728242]
[1746717287283,17.967,2005.3,2005.2,4.98703371]
[1746717287472,5.66053861,2005.7,2005.2,4.98703371]
[1746717287473,12.15815603,2005.6,2005.2,4.98703371]
[1746717287671,7.172,2005.6,2005.3,4.98675272]
[1746717288074,17.977,2006.1,2004.8,3.7629]
[1746717288396,7.172,2006.1,2005.8,4.98537665]
[1746717288698,5.65863943,2006.5,2006.0,4.98495779]
[1746717288896,0.6747,2006.5,2006.1,4.98455878]
[1746717289080,0.6747,2006.5,2006.1,9.96921171]
[1746717289395,7.8467,2006.9,2006.4,4.98386272]
[1746717289601,7.8467,2006.9,2006.5,4.98370675]
[1746717289802,12.82953487,2006.9,2006.5,4.98370675]
[1746717290110,4.98374098,2006.6,2006.1,4.9846639]
[1746717290290,4.98380264,2006.5,2005.6,0.8171]
[1746717290597,4.98583146,2005.7,2005.3,5.80385624]
[1746717290805,5.53538631,2005.9,2005.4,4.98641056]
[1746717291008,4.98555816,2005.8,2005.4,4.98641056]
[1746717291213,8.53542383,2005.9,2005.1,4.98718701]
[1746717291374,4.98624744,2005.6,2005.1,4.98718701]
[1746717291563,5.53589372,2005.7,2005.2,4.98700214]
[1746717291766,4.98589815,2005.7,2005.3,4.986779]
[1746717291972,4.98600274,2005.7,2005.0,5.75030498]
[1746717292196,4.98704033,2005.2,2005.0,0.7629]
[1746717292365,0.55,2005.5,2004.8,3.263854]
[1746717292567,4.98700008,2005.3,2004.8,8.25178082]
[1746717292797,5.53641805,2005.5,2005.0,4.98735905]
[1746717293064,5.53641805,2005.5,2005.1,4.98727718]
[1746717293465,4.98685194,2005.3,2004.9,4.98765309]
[1746717293771,4.98654023,2005.4,2005.0,4.98750419]
[1746717293982,0.55,2005.5,2004.8,4.98782635]
[1746717294304,0.55,2005.5,2005.1,4.98710088]
[1746717294491,0.55,2005.5,2004.8,4.98802737]
[1746717294688,0.55,2005.5,2005.1,4.98713541]
[1746717294908,5.53629661,2005.5,2005.1,4.98713541]
[1746717295104,0.6747,2005.6,2005.2,4.98691902]
[1746717295302,8.66079754,2005.6,2005.2,4.98691902]
[1746717295603,3.0,2005.7,2005.3,4.98666028]
[1746717295807,7.17,2005.6,2005.3,4.98666028]
[1746717295967,7.17,2005.6,2005.2,4.98690586]
[1746717296175,7.17,2005.6,2005.2,9.97375294]
[1746717296374,4.98564041,2005.8,2005.3,4.98673429]
[1746717296714,7.73603404,2005.8,2005.4,4.98631752]
[1746717296894,3.55,2005.7,2004.9,4.98759071]
[1746717297070,0.6747,2005.6,2005.2,4.98702688]
[1746717297271,8.6607867,2005.6,2005.1,4.98712678]
[1746717297475,4.98650899,2005.5,2005.0,4.98742887]
[1746717297681,4.98650899,2005.5,2004.7,5.789463]
[1746717297682,4.98652559,2005.5,2004.9,4.98776425]
[1746717298012,4.98653733,2005.4,2005.0,4.98740173]
[1746717298423,4.98653733,2005.4,2004.9,4.98763372]
[1746717298578,4.98693322,2005.3,2004.8,4.9877929]
[1746717298779,4.98693322,2005.3,2004.9,4.98768678]
[1746717299512,3.6747,2005.6,2005.0,0.04987142]
[1746717299687,4.986295,2005.5,2005.0,0.04987142]
[1746717299896,8.66087559,2005.6,2004.9,5.36576045]
[1746717300089,3.6747,2005.6,2004.9,4.98762616]
[1746717300325,0.6747,2005.0,2004.4,0.7625]
[1746717300504,4.98837906,2004.7,2004.3,3.263854]
[1746717300685,4.98837906,2004.7,2004.3,8.25312246]
[1746717300880,4.98813373,2004.8,2004.4,4.98897812]
[1746717301123,7.8447,2005.0,2004.3,3.263854]
[1746717301365,4.98743859,2005.1,2004.7,4.98825889]
[1746717301539,0.55,2005.5,2004.8,0.87127864]
[1746717301683,4.9866704,2005.4,2004.9,9.97525928]
[1746717302033,4.98712551,2005.2,2004.8,5.80931702]
[1746717302326,4.98712551,2005.2,2004.8,4.98797869]
[1746717302523,4.9882783,2004.7,2004.3,4.021254]
[1746717302814,4.9882783,2004.7,2004.3,9.0104073]
[1746717303017,4.98852956,2004.6,2004.3,4.021254]
[1746717303186,4.98867476,2004.6,2004.3,0.7574]
[1746717303382,4.98867476,2004.6,2004.1,4.98960847]
[1746717303589,4.98867476,2004.6,2004.2,4.9894911]
[1746717303789,4.98885696,2004.5,2004.1,6.27166547]
[1746717304131,0.55,2004.7,2003.7,0.783]
[1746717304419,0.6747,2004.2,2003.7,0.783]
[1746717304619,4.98986914,2004.1,2003.7,5.77370847]
[1746717304819,4.990041,2004.0,2003.6,3.263854]
[1746717305026,5.6643166,2004.2,2003.6,3.263854]
[1746717305238,4.98979491,2004.1,2003.7,4.99061494]
[1746717305534,9.97979303,2004.1,2003.6,9.19649805]
[1746717305740,4.99004391,2004.0,2003.6,9.19649805]
[1746717305909,4.99030099,2003.9,2003.6,4.20560697]
[1746717306240,4.99064367,2003.8,2003.6,3.263854]
[1746717306441,4.98977154,2004.1,2003.4,5.77448823]
[1746717306442,0.55,2004.1,2003.4,3.263854]
[1746717306610,0.6747,2003.8,2003.4,3.263854]
[1746717306810,4.99090339,2003.7,2003.4,3.263854]
[1746717307342,9.98189545,2003.7,2003.4,3.263854]
[1746717307519,4.99090339,2003.7,2003.4,3.263854]
[1746717307840,0.6747,2003.8,2003.4,3.263854]
[1746717308024,3.0,2004.1,2003.7,5.7873704]
[1746717308230,7.98961131,2004.2,2003.8,4.99041258]
[1746717308430,7.99014896,2004.0,2003.5,4.99103788]
[1746717308627,7.99011246,2004.0,2003.5,4.99103788]
[1746717309021,7.99013249,2004.0,2003.5,4.99103788]
[1746717309206,0.6747,2004.1,2003.4,8.25522857]
[1746717309411,3.56642236,2004.0,2003.4,3.263854]
[1746717309713,5.54088393,2003.7,2003.1,0.7968]
[1746717309906,4.99116251,2003.6,2003.2,4.991905]
[1746717310109,4.11642236,2004.0,2003.1,0.7968]
[1746717310336,4.11642236,2004.0,2002.9,0.7559]
[1746717310337,3.6747,2003.7,2002.9,0.7559]
[1746717310549,4.99150603,2003.5,2003.0,4.99237641]
[1746717310848,0.55,2003.5,2002.8,4.99290087]
[1746717311017,4.99160484,2003.4,2003.0,4.99239133]
[1746717311358,4.99179688,2003.3,2002.8,4.99283513]
[1746717311539,4.99160604,2003.4,2002.6,9.01323931]
[1746717311740,4.9926066,2003.0,2002.6,5.24715708]
[1746717311949,4.99235639,2003.1,2002.7,4.9931715]
[1746717312133,4.99270886,2003.0,2002.6,3.263854]
[1746717312330,4.99246519,2003.1,2002.6,8.257246]
[1746717312531,4.9925975,2003.0,2002.6,3.263854]
[1746717312751,4.99284962,2002.9,2002.6,3.263854]
[1746717313327,4.99274149,2003.0,2002.6,3.263854]
[1746717313527,4.99280277,2002.9,2002.6,3.263854]
[1746717313763,4.99267483,2003.0,2002.6,8.25717174]
[1746717313954,4.9925237,2003.0,2002.6,4.99331774]
[1746717314769,4.9925237,2003.0,2002.5,5.81949507]
[1746717314967,4.9925237,2003.0,2002.6,4.99348121]
[1746717315171,11.91841137,2003.1,2002.6,4.9933468]
[1746717315337,11.91841137,2003.1,2002.7,4.99325751]
[1746717315531,4.99165594,2003.4,2003.0,4.99243671]
[1746717315857,6.927,2003.3,2002.7,1.08125043]
[1746717316066,6.927,2003.3,2003.0,4.99247968]
[1746717316260,11.91877113,2003.3,2002.7,1.08125043]
[1746717316457,4.99212453,2003.2,2002.8,4.9928989]
[1746717316845,4.99236135,2003.1,2002.6,4.99336536]
[1746717317133,4.99214039,2003.2,2002.8,4.99282509]
[1746717317364,22.97417023,2003.6,2003.2,4.99190765]
[1746717317570,29.90217023,2003.6,2003.2,4.99190765]
[1746717317944,17.983,2003.6,2003.4,4.99137801]
[1746717318271,17.983,2003.6,2003.1,4.99211178]
[1746717318426,17.983,2003.6,2003.1,5.57176878]
[1746717318632,4.99137677,2003.5,2003.1,4.99217982]
[1746717318915,4.99137677,2003.5,2003.1,9.98426051]
[1746717319073,4.99137677,2003.5,2003.1,4.99208069]
[1746717319246,22.97416408,2003.6,2003.1,4.99205913]
[1746717319446,22.97416408,2003.6,2003.2,4.99186897]
[1746717319879,17.983,2003.6,2003.3,4.9917284]
[1746717320047,17.983,2003.6,2003.2,4.991917]
[1746717320264,22.97411842,2003.6,2003.2,4.991917]
[1746717320593,4.99111842,2003.6,2003.2,9.98381509]
[1746717320750,0.6747,2004.3,2003.4,0.7545]
[1746717320950,0.6747,2004.3,2004.0,4.98990579]
[1746717321177,6.928,2004.5,2004.1,4.98956053]
[1746717321350,5.66334699,2004.6,2004.2,4.98949962]
[1746717321867,4.98893232,2004.5,2004.0,4.98985161]
[1746717322071,5.66332087,2004.6,2004.2,4.98950929]
[1746717322252,4.98896125,2004.5,2004.0,4.98984973]
[1746717322447,4.98896125,2004.5,2004.0,4.98981021]
[1746717322674,0.6747,2004.6,2004.0,4.98997188]
[1746717322882,3.6747,2004.6,2004.2,4.98934521]
[1746717323055,8.663295,2004.6,2004.2,4.98934521]
[1746717323257,0.6747,2004.6,2004.3,4.9890583]
[1746717323467,6.928,2004.7,2004.4,4.98882511]
[1746717323689,11.91632477,2004.7,2004.3,4.9891534]